[Event "Morgan Stanley Charity 2018"]
[Site "Budapest"]
[Date "2018.09.14"]
[Round "1"]
[White "Gara, Ticia"]
[Black "Torok, Sandor"]
[Result "1-0"]
[ECO "A46"]
[WhiteElo "2321"]
[BlackElo "2276"]
[Annotator "ChessBase"]
[PlyCount "121"]
[EventDate "2018.09.14"]
[EventType "team-tourn"]
[EventCountry "HUN"]
[SourceTitle "playchess.com"]
[Source "ChessBase"]
[SourceQuality "1"]
[TimeControl "1200+10"]

1. d4 {[%emt 0:00:03]} Nf6 {[%emt 0:00:04]} 2. Nf3 {[%emt 0:00:03]} e6 {[%emt 0:00:01]} 3. Bf4 {[%emt 0:00:08]} b6 {[%emt 0:00:07]} 4. e3 {[%emt 0:00:10]} Bb7 {[%emt 0:00:01]} 5. Be2 {[%emt 0:00:12]} d6 {[%emt 0:00:19]} 6. h3 {[%emt 0:00:07]} Nbd7 {[%emt 0:00:04]} 7. O-O {[%emt 0:00:03]} g6 {[%emt 0:00:07]} 8. c4 {[%emt 0:00:21]} Bg7 {[%emt 0:00:03]} 9. Nc3 {[%emt 0:00:02]} Ne4 {[%emt 0:00:53]} 10. Nxe4 {[%emt 0:01:17]} Bxe4 {[%emt 0:00:04]} 11. Bg5 {[%emt 0:01:14]} Qc8 {[%emt 0:00:52]} 12. Nd2 {[%emt 0:01:01]} Bb7 {[%emt 0:00:09]} 13. Bf3 {[%emt 0:01:04]} O-O {[%emt 0:00:22]} 14. h4 {[%emt 0:00:16]} h6 {[%emt 0:04:15]} 15. Bf4 {[%emt 0:00:07]} e5 {[%emt 0:00:03]} 16. dxe5 {[%emt 0:03:06]} Nxe5 {[%emt 0:01:36]} 17. Bxb7 {[%emt 0:00:35]} Qxb7 {[%emt 0:00:03]} 18. Qc2 {[%emt 0:00:23]} d5 {[%emt 0:02:31]} 19. Rfd1 {[%emt 0:05:07]} Nxc4 {[%emt 0:02:09]} 20. Nxc4 {[%emt 0:00:16]} dxc4 {[%emt 0:00:02]} 21. Qxc4 {[%emt 0:00:26]} c5 {[%emt 0:00:21]} 22. Rd2 {[%emt 0:00:38]} Rfd8 {[%emt 0:00:29]} 23. Rad1 {[%emt 0:00:03]} Qe7 {[%emt 0:00:09]} 24. Bd6 {[%emt 0:00:53]} Qe8 {[%emt 0:00:48]} 25. b3 {[%emt 0:00:26]} h5 {[%emt 0:00:32]} 26. Rd5 {[%emt 0:00:31]} Rd7 {[%emt 0:00:57]} 27. Bf4 {[%emt 0:01:06]} Rxd5 {[%emt 0:01:41]} 28. Qxd5 {[%emt 0:00:11]} Bf6 {[%emt 0:01:10]} 29. Bg5 {[%emt 0:00:04]} Bxg5 {[%emt 0:00:26]} 30. hxg5 {[%emt 0:00:56]} Rc8 {[%emt 0:00:57]} 31. Qd7 {[%emt 0:00:36]} Qxd7 {[%emt 0:01:28]} 32. Rxd7 {[%emt 0:00:01]} a5 {[%emt 0:00:42]} 33. Rb7 {[%emt 0:00:43]} c4 {[%emt 0:00:31]} 34. bxc4 {[%emt 0:00:03]} Rxc4 {[%emt 0:00:01]} 35. Rxb6 {[%emt 0:00:04]} Rc1+ {[%emt 0:00:11]} 36. Kh2 {[%emt 0:00:02]} Rc2 {[%emt 0:00:01]} 37. a4 {[%emt 0:01:10]} Rc4 {[%emt 0:00:15]} 38. Rb8+ {[%emt 0:00:30]} Kg7 {[%emt 0:00:01]} 39. f4 {[%emt 0:00:09]} Rxa4 {[%emt 0:01:02]} 40. Kg3 {[%emt 0:00:01]} Ra3 {[%emt 0:00:06]} 41. Kf3 {[%emt 0:00:01]} a4 {[%emt 0:00:01]} 42. Ra8 {[%emt 0:00:05]} Ra1 {[%emt 0:00:02]} 43. Kg3 {[%emt 0:01:02]} a3 {[%emt 0:00:01]} 44. Ra7 {[%emt 0:00:19]} Kf8 {[%emt 0:00:02]} 45. Kh2 {[%emt 0:00:10]} Ke8 {[%emt 0:00:12]} 46. e4 {[%emt 0:00:06]} Kf8 {[%emt 0:00:36]} 47. f5 {[%emt 0:00:09]} gxf5 {[%emt 0:01:00]} 48. exf5 {[%emt 0:00:01]} Ke8 {[%emt 0:00:09]} 49. f6 {[%emt 0:00:10]} h4 {[%emt 0:00:13]} 50. Ra4 {[%emt 0:00:27]} Kd7 {[%emt 0:00:05]} 51. Rxh4 {[%emt 0:00:13]} Ke6 {[%emt 0:00:02]} 52. Ra4 {[%emt 0:00:06]} Kf5 {[%emt 0:00:11]} 53. Ra5+ {[%emt 0:00:09]} Kg4 {[%emt 0:00:07]} 54. g3 {[%emt 0:01:30]} Ra2+ {[%emt 0:00:09]} 55. Kg1 {[%emt 0:00:03]} Kxg3 {[%emt 0:00:02]} 56. Kf1 {[%emt 0:00:06]} Kg4 {[%emt 0:00:21]} 57. g6 {[%emt 0:00:10]} Kf3 {[%emt 0:00:30]} 58. Rf5+ {[%emt 0:00:08]} Ke4 {[%emt 0:00:13]} 59. gxf7 {[%emt 0:00:19]} Ra1+ {[%emt 0:00:10]} 60. Kg2 {[%emt 0:00:01]} a2 {[%emt 0:00:09]} 61. Ra5 {[%emt 0:00:23]} 1-0

[Event "Morgan Stanley Charity 2018"]
[Site "Budapest"]
[Date "2018.09.14"]
[Round "1"]
[White "Szamoskozi, Gabor"]
[Black "Terbe, Julianna"]
[Result "0-1"]
[ECO "D00"]
[WhiteElo "2270"]
[BlackElo "2260"]
[Annotator "ChessBase"]
[PlyCount "117"]
[EventDate "2018.09.14"]
[EventType "team-tourn"]
[EventCountry "HUN"]
[SourceTitle "playchess.com"]
[Source "ChessBase"]
[SourceQuality "1"]
[TimeControl "1200+10"]

1. d4 {[%emt 0:00:04]} d5 {[%emt 0:00:08]} 2. Nc3 {[%emt 0:00:05]} Nf6 {[%emt 0:00:11]} 3. Bf4 {[%emt 0:00:04]} e6 {[%emt 0:00:59]} 4. e3 {[%emt 0:01:15]} a6 {[%emt 0:00:05]} 5. Nf3 {[%emt 0:01:02]} c5 {[%emt 0:00:03]} 6. Ne5 {[%emt 0:01:54]} Be7 {[%emt 0:02:01]} 7. Be2 {[%emt 0:01:17]} O-O {[%emt 0:00:28]} 8. h4 {[%emt 0:02:48]} Nbd7 {[%emt 0:04:16]} 9. g4 {[%emt 0:00:29]} Nxe5 {[%emt 0:00:15]} 10. Bxe5 {[%emt 0:00:09]} Nd7 {[%emt 0:00:35]} 11. Bg3 {[%emt 0:00:28]} b5 {[%emt 0:01:37]} 12. Bf3 {[%emt 0:00:41]} Bb7 {[%emt 0:01:05]} 13. Ne2 {[%emt 0:01:37]} Rc8 {[%emt 0:01:39]} 14. g5 {[%emt 0:00:53]} Qa5+ {[%emt 0:01:09]} 15. Kf1 {[%emt 0:00:15]} Rfe8 {[%emt 0:01:16]} 16. a3 {[%emt 0:05:05]} Qb6 {[%emt 0:00:58]} 17. Kg2 {[%emt 0:00:37]} b4 {[%emt 0:01:05]} 18. axb4 {[%emt 0:00:12]} cxb4 {[%emt 0:00:06]} 19. Nf4 {[%emt 0:01:16]} a5 {[%emt 0:01:34]} 20. Re1 {[%emt 0:02:33]} Bc6 {[%emt 0:01:28]} 21. Nd3 {[%emt 0:00:21]} a4 {[%emt 0:00:56]} 22. Qd2 {[%emt 0:00:09]} Bb5 {[%emt 0:01:11]} 23. Ne5 {[%emt 0:00:19]} Nxe5 {[%emt 0:00:02]} 24. Bxe5 {[%emt 0:00:01]} f6 {[%emt 0:00:11]} 25. gxf6 {[%emt 0:00:05]} gxf6 {[%emt 0:00:02]} 26. Bf4 {[%emt 0:00:10]} Qc6 {[%emt 0:00:27]} 27. Bh5 {[%emt 0:00:15]} Red8 {[%emt 0:00:11]} 28. Qd1 {[%emt 0:00:15]} Kh8 {[%emt 0:00:10]} 29. Kh1 {[%emt 0:00:08]} Rg8 {[%emt 0:00:15]} 30. Rg1 {[%emt 0:00:15]} Rxg1+ {[%emt 0:00:13]} 31. Qxg1 {[%emt 0:00:03]} Rg8 {[%emt 0:00:02]} 32. Qd1 {[%emt 0:00:07]} e5 {[%emt 0:00:13]} 33. dxe5 {[%emt 0:00:12]} f5 {[%emt 0:00:24]} 34. Bf3 {[%emt 0:00:06]} Rd8 {[%emt 0:00:12]} 35. Qd4 {[%emt 0:00:14]} Bc5 {[%emt 0:00:11]} 36. Qd2 {[%emt 0:00:25]} h6 {[%emt 0:00:09]} 37. Rg1 {[%emt 0:00:03]} Qe6 {[%emt 0:00:07]} 38. Rg3 {[%emt 0:00:17]} Be8 {[%emt 0:00:02]} 39. c3 {[%emt 0:00:07]} bxc3 {[%emt 0:00:08]} 40. Qxc3 {[%emt 0:00:02]} Be7 {[%emt 0:00:08]} 41. h5 {[%emt 0:00:02]} Bh4 {[%emt 0:00:24]} 42. Rg2 {[%emt 0:00:06]} Be7 {[%emt 0:00:06]} 43. Rg3 {[%emt 0:00:12]} Bh4 {[%emt 0:00:01]} 44. Rg2 {[%emt 0:00:01]} Be7 {[%emt 0:00:01]} 45. Qd4 {[%emt 0:00:25]} a3 {[%emt 0:00:15]} 46. bxa3 {[%emt 0:00:03]} Bxa3 {[%emt 0:00:01]} 47. Be2 {[%emt 0:00:16]} Rc8 {[%emt 0:00:12]} 48. Kh2 {[%emt 0:00:25]} Bc5 {[%emt 0:00:04]} 49. Qb2 {[%emt 0:00:04]} Ra8 {[%emt 0:00:35]} 50. Bf3 {[%emt 0:00:07]} Rd8 {[%emt 0:00:06]} 51. Be2 {[%emt 0:00:02]} d4 {[%emt 0:00:13]} 52. exd4 {[%emt 0:00:05]} Bxd4 {[%emt 0:00:05]} 53. Qb4 {[%emt 0:00:28]} Bf7 {[%emt 0:00:21]} 54. Qa5 {[%emt 0:00:10]} Re8 {[%emt 0:00:09]} 55. Bb5 {[%emt 0:00:05]} Bxe5 {[%emt 0:00:09]} 56. Bxe8 {[%emt 0:00:16]} Bxf4+ {[%emt 0:00:01]} 57. Kh3 {[%emt 0:00:05]} Bxe8 {[%emt 0:00:16]} 58. Qc3+ {[%emt 0:00:07]} Be5 {[%emt 0:00:05]} 59. Qd2 0-1

[Event "Morgan Stanley Charity 2018"]
[Site "Budapest"]
[Date "2018.09.14"]
[Round "2"]
[White "Terbe, Julianna"]
[Black "Tomosvary, Attila"]
[Result "1-0"]
[ECO "B06"]
[WhiteElo "2260"]
[BlackElo "2126"]
[Annotator "NA"]
[PlyCount "63"]
[EventDate "2018.09.14"]
[EventType "team-tourn"]
[EventCountry "HUN"]
[SourceTitle "playchess.com"]
[Source "ChessBase"]
[SourceQuality "1"]
[TimeControl "1200+10"]

1. d4 {[%emt 0:00:03]} g6 {[%emt 0:00:14]} 2. e4 {[%emt 0:00:05]} Bg7 {[%emt 0:00:10]} 3. Nc3 {[%emt 0:00:04]} c6 {[%emt 0:00:20]} 4. Nf3 {[%emt 0:00:03]} d5 {[%emt 0:00:45]} 5. h3 {[%emt 0:00:05]} dxe4 {[%emt 0:00:40]} 6. Nxe4 {[%emt 0:00:02]} Nd7 {[%emt 0:00:46]} 7. Be2 {[%emt 0:01:19]} Ngf6 {[%emt 0:01:04]} 8. Nxf6+ {[%emt 0:00:03]} Nxf6 {[%emt 0:00:10]} 9. O-O {[%emt 0:00:05]} O-O {[%emt 0:00:32]} 10. c4 Qc7 {[%emt 0:01:13]} 11. Be3 {[%emt 0:02:42]} Bf5 {[%emt 0:01:52]} 12. Qb3 {[%emt 0:02:02]} b6 {[%emt 0:01:03]} 13. Rfd1 {[%emt 0:00:47]} Rad8 {[%emt 0:00:26]} 14. Rac1 {[%emt 0:00:24]} h6 {[%emt 0:01:18]} 15. Qa3 {[%emt 0:01:43]} g5 {[%emt 0:01:12]} 16. Bd3 {[%emt 0:02:21]} Bxd3 {[%emt 0:01:39]} 17. Rxd3 {[%emt 0:00:04]} Nh5 {[%emt 0:00:35]} 18. Re1 {[%emt 0:01:19]} e6 {[%emt 0:00:32]} 19. Rdd1 {[%emt 0:03:07]} Rfe8 {[%emt 0:02:10]} 20. Qa4 {[%emt 0:01:41]} Nf6 {[%emt 0:02:48]} 21. b4 {[%emt 0:02:16]} Nd7 {[%emt 0:00:25]} 22. Qc2 {[%emt 0:00:43]} c5 {[%emt 0:01:18]} 23. bxc5 {[%emt 0:00:20]} bxc5 {[%emt 0:00:03]} 24. d5 {[%emt 0:00:10]} exd5 {[%emt 0:01:12]} 25. Rxd5 {[%emt 0:00:43]} Ne5 {[%emt 0:00:53]} 26. Nxe5 {[%emt 0:00:36]} Rxe5 {[%emt 0:00:19]} 27. Rxd8+ {[%emt 0:00:27]} Qxd8 {[%emt 0:00:06]} 28. Rd1 {[%emt 0:00:08]} Qe8 {[%emt 0:00:22]} 29. Qd2 {[%emt 0:00:34]} Bf8 {[%emt 0:00:11]} 30. Qa5 {[%emt 0:00:27]} Qe6 {[%emt 0:00:24]} 31. Qb5 {[%emt 0:00:29]} a6 {[%emt 0:00:09]} 32. Qb8 {[%emt 0:00:12]} 1-0

[Event "Morgan Stanley Charity 2018"]
[Site "Budapest"]
[Date "2018.09.14"]
[Round "3"]
[White "Gara, Ticia"]
[Black "Jusup, Matej"]
[Result "1-0"]
[ECO "C42"]
[WhiteElo "2321"]
[BlackElo "2235"]
[Annotator "ChessBase"]
[PlyCount "57"]
[EventDate "2018.09.14"]
[EventType "team-tourn"]
[EventCountry "HUN"]
[SourceTitle "playchess.com"]
[Source "ChessBase"]
[SourceQuality "1"]
[TimeControl "1200+10"]

1. e4 {[%emt 0:00:03]} e5 {[%emt 0:00:02]} 2. Nf3 {[%emt 0:00:02]} Nf6 {[%emt 0:00:02]} 3. Nxe5 {[%emt 0:00:33]} d6 {[%emt 0:00:06]} 4. Nf3 {[%emt 0:00:02]} Nxe4 {[%emt 0:00:02]} 5. d3 {[%emt 0:00:24]} Nf6 {[%emt 0:00:06]} 6. d4 {[%emt 0:00:08]} Bg4 {[%emt 0:00:59]} 7. Be2 {[%emt 0:00:27]} g6 {[%emt 0:01:48]} 8. O-O {[%emt 0:00:08]} Bg7 {[%emt 0:00:04]} 9. h3 {[%emt 0:00:04]} Bf5 {[%emt 0:00:44]} 10. Bb5+ {[%emt 0:00:47]} c6 {[%emt 0:00:29]} 11. Re1+ {[%emt 0:00:02]} Kf8 {[%emt 0:00:17]} 12. Bd3 {[%emt 0:00:15]} Bxd3 {[%emt 0:00:24]} 13. Qxd3 {[%emt 0:00:01]} Na6 {[%emt 0:00:15]} 14. Bf4 {[%emt 0:00:54]} Nc7 {[%emt 0:00:16]} 15. c4 {[%emt 0:00:29]} Ne6 {[%emt 0:01:08]} 16. Bg3 {[%emt 0:00:11]} d5 {[%emt 0:01:24]} 17. Nc3 {[%emt 0:00:32]} h6 {[%emt 0:00:22]} 18. Ne5 {[%emt 0:01:01]} Ng5 {[%emt 0:00:36]} 19. cxd5 {[%emt 0:01:40]} Nxd5 {[%emt 0:01:14]} 20. h4 {[%emt 0:04:36]} Nh7 {[%emt 0:01:06]} 21. Ne4 {[%emt 0:00:39]} Rg8 {[%emt 0:03:11]} 22. Nxf7 {[%emt 0:02:21]} Kxf7 {[%emt 0:00:57]} 23. Nd6+ {[%emt 0:00:02]} Kf8 {[%emt 0:00:45]} 24. Qxg6 {[%emt 0:00:14]} Qd7 {[%emt 0:01:36]} 25. Qxh7 {[%emt 0:00:06]} Nf6 {[%emt 0:01:01]} 26. Qg6 {[%emt 0:00:46]} h5 {[%emt 0:00:25]} 27. Nf5 {[%emt 0:00:37]} Bh8 {[%emt 0:01:26]} 28. Qh6+ {[%emt 0:00:45]} Kf7 {[%emt 0:00:53]} 29. Nd6+ 1-0

[Event "Morgan Stanley Charity 2018"]
[Site "Budapest"]
[Date "2018.09.14"]
[Round "3"]
[White "Torok, Sandor"]
[Black "Gara, Anita"]
[Result "1-0"]
[ECO "B32"]
[WhiteElo "2276"]
[BlackElo "2370"]
[Annotator "NA"]
[PlyCount "83"]
[EventDate "2018.09.14"]
[EventType "team-tourn"]
[EventCountry "HUN"]
[SourceTitle "playchess.com"]
[Source "ChessBase"]
[SourceQuality "1"]
[TimeControl "1200+10"]

1. e4 {[%emt 0:00:02]} c5 {[%emt 0:00:01]} 2. Nf3 {[%emt 0:00:02]} Nc6 {[%emt 0:00:02]} 3. d4 {[%emt 0:00:01]} cxd4 {[%emt 0:00:04]} 4. Nxd4 {[%emt 0:00:02]} e5 {[%emt 0:00:04]} 5. Nb5 {[%emt 0:00:12]} d6 {[%emt 0:00:02]} 6. Bc4 {[%emt 0:02:25]} Na5 {[%emt 0:05:48]} 7. Bd5 {[%emt 0:00:46]} Nf6 {[%emt 0:00:32]} 8. c4 {[%emt 0:02:54]} Be7 {[%emt 0:00:14]} 9. O-O {[%emt 0:00:32]} O-O {[%emt 0:00:04]} 10. b3 {[%emt 0:00:49]} a6 {[%emt 0:00:36]} 11. N5c3 {[%emt 0:00:01]} Nc6 {[%emt 0:00:09]} 12. f4 {[%emt 0:01:03]} Ng4 {[%emt 0:02:00]} 13. Kh1 {[%emt 0:00:33]} exf4 {[%emt 0:00:54]} 14. Bxf4 {[%emt 0:01:18]} Bg5 {[%emt 0:01:10]} 15. Qd2 {[%emt 0:00:31]} Bxf4 {[%emt 0:00:16]} 16. Qxf4 {[%emt 0:00:04]} Nce5 {[%emt 0:01:17]} 17. h3 {[%emt 0:00:50]} Nf6 {[%emt 0:00:02]} 18. Nd2 {[%emt 0:01:36]} Nh5 {[%emt 0:00:08]} 19. Qe3 {[%emt 0:00:46]} Qh4 {[%emt 0:01:04]} 20. Kg1 {[%emt 0:00:15]} Kh8 {[%emt 0:01:33]} 21. Nf3 {[%emt 0:02:44]} Qe7 {[%emt 0:01:10]} 22. Nxe5 {[%emt 0:01:19]} dxe5 {[%emt 0:00:02]} 23. Ne2 {[%emt 0:01:48]} Be6 {[%emt 0:00:15]} 24. Rad1 {[%emt 0:00:10]} Nf6 {[%emt 0:01:02]} 25. Ng3 {[%emt 0:00:37]} a5 {[%emt 0:01:33]} 26. Qb6 {[%emt 0:00:21]} a4 {[%emt 0:01:35]} 27. b4 {[%emt 0:00:23]} Nd7 {[%emt 0:00:58]} 28. Qb5 {[%emt 0:00:38]} Bxd5 {[%emt 0:00:36]} 29. Rxd5 {[%emt 0:00:30]} Nf6 {[%emt 0:00:46]} 30. Rxe5 {[%emt 0:01:02]} Qd8 {[%emt 0:00:02]} 31. Nf5 {[%emt 0:00:25]} g6 {[%emt 0:00:08]} 32. Ne7 {[%emt 0:00:20]} Qd4+ {[%emt 0:00:16]} 33. Kh2 {[%emt 0:00:04]} Nxe4 {[%emt 0:00:25]} 34. Rd5 Qe3 {[%emt 0:00:12]} 35. Rf3 {[%emt 0:00:23]} Qe1 {[%emt 0:00:14]} 36. Qb6 {[%emt 0:00:05]} Rae8 {[%emt 0:00:27]} 37. Re3 {[%emt 0:00:14]} Qf2 {[%emt 0:00:01]} 38. Qd4+ {[%emt 0:00:02]} Nf6 {[%emt 0:00:17]} 39. Rd6 {[%emt 0:00:16]} Kg7 {[%emt 0:00:05]} 40. Rxf6 {[%emt 0:00:04]} Qxf6 {[%emt 0:00:08]} 41. Nf5+ {[%emt 0:00:02]} gxf5 {[%emt 0:00:26]} 42. Rg3+ {[%emt 0:00:00]} 1-0

[Event "Morgan Stanley Charity 2018"]
[Site "Budapest"]
[Date "2018.09.14"]
[Round "3"]
[White "Novaky, Csaba"]
[Black "Terbe, Julianna"]
[Result "0-1"]
[ECO "C59"]
[WhiteElo "2088"]
[BlackElo "2260"]
[Annotator "NA"]
[PlyCount "164"]
[EventDate "2018.09.14"]
[EventType "team-tourn"]
[EventCountry "HUN"]
[SourceTitle "playchess.com"]
[Source "ChessBase"]
[SourceQuality "1"]
[TimeControl "1200+10"]

1. e4 {[%emt 0:00:04]} e5 {[%emt 0:00:03]} 2. Nf3 {[%emt 0:00:02]} Nc6 {[%emt 0:00:02]} 3. Bc4 {[%emt 0:00:04]} Nf6 {[%emt 0:00:07]} 4. Ng5 {[%emt 0:00:28]} d5 {[%emt 0:00:02]} 5. exd5 {[%emt 0:00:02]} Na5 {[%emt 0:00:01]} 6. Bb5+ {[%emt 0:00:04]} c6 {[%emt 0:00:02]} 7. dxc6 {[%emt 0:00:01]} bxc6 {[%emt 0:00:01]} 8. Be2 {[%emt 0:00:05]} h6 {[%emt 0:00:08]} 9. Nf3 {[%emt 0:00:07]} e4 {[%emt 0:00:10]} 10. Ne5 {[%emt 0:00:02]} Bc5 {[%emt 0:00:09]} 11. c3 {[%emt 0:00:26]} Qc7 {[%emt 0:00:10] C59: Two Knights: 4 Ng5 d5 5 exd5 Na5 5 Bb5+ c6 6 dxc6 bxc6 7 Be2} (11... Bd6 12. d4 exd3 13. Nxd3 Qc7 14. Nd2 Be6 15. b4 Nb7 16. Bb2 Bf5 17. Nf3 O-O 18. h3 Rad8 19. Nd4 {½-½ (26) Vovk,A (2641)-Stevic,H (2602) Hungary 2017}) 12. f4 {[%emt 0:03:15] LiveBook: 6 Games} (12. d4 $11 exd3 13. Nxd3) 12... Nb7 {[%emt 0:00:04]} ({Black should try} 12... exf3 $1 $15 13. Nxf3 Ng4) 13. b4 {[%emt 0:00:56]} Bb6 {[%emt 0:00:01]} 14. Na3 {[%emt 0:00:56]} O-O {[%emt 0:02:57]} 15. Nac4 {[%emt 0:00:19]} Nd6 $146 {[%emt 0:01:26]} ({Predecessor:} 15... Nd5 16. Nxb6 axb6 17. O-O Rd8 18. Qe1 f6 19. Ng6 {½-½ (29) Fekih,B (2360)-Ebert,J ICCF email 2006}) 16. Nxb6 {[%emt 0:00:38]} Qxb6 {[%emt 0:00:03]} 17. a4 {[%emt 0:00:56]} a5 {[%emt 0:00:37]} 18. bxa5 {[%emt 0:00:36]} Rxa5 {[%emt 0:01:18]} 19. Ba3 {[%emt 0:00:02]} c5 {[%emt 0:00:22]} 20. Rb1 {[%emt 0:00:59]} Qc7 {[%emt 0:00:15]} 21. O-O {[%emt 0:00:15]} Be6 {[%emt 0:00:49]} 22. Kh1 {[%emt 0:01:09]} Rfa8 {[%emt 0:00:13]} 23. d4 {[%emt 0:00:50]} cxd4 {[%emt 0:00:33]} 24. Bxd6 {[%emt 0:01:07]} Qxd6 {[%emt 0:00:02]} 25. Qxd4 {[%emt 0:00:33]} Qxd4 {[%emt 0:00:22]} 26. cxd4 {[%emt 0:00:01]} Rxa4 {[%emt 0:00:02]} 27. f5 {[%emt 0:01:10]} Ba2 {[%emt 0:01:00]} 28. Rb2 {[%emt 0:01:09]} Rxd4 {[%emt 0:01:01]} 29. Ra1 {[%emt 0:00:22]} Rda4 {[%emt 0:00:47]} 30. Bb5 {[%emt 0:01:16]} Ra3 {[%emt 0:00:31]} 31. Bc6 {[%emt 0:00:22]} Bd5 {[%emt 0:02:00]} 32. Rxa3 {[%emt 0:00:59]} Rxa3 {[%emt 0:00:01]} 33. h3 {[%emt 0:00:19]} Bxc6 {[%emt 0:00:37]} 34. Nxc6 {[%emt 0:00:01]} Rc3 {[%emt 0:02:21]} 35. Rb8+ {[%emt 0:01:19]} Kh7 {[%emt 0:00:01]} 36. Ne5 {[%emt 0:00:01]} Rc7 {[%emt 0:00:04]} 37. Rf8 {[%emt 0:01:05]} Nd7 $11 {[%emt 0:00:23]} ({Black should try} 37... Re7 $19 38. Nxf7 g6 39. Nxh6 Kxh6 40. Rxf6 e3 41. Rxg6+ Kh7) 38. Nxd7 {[%emt 0:00:30]} Rxd7 {[%emt 0:00:01]} 39. Re8 {[%emt 0:00:01]} Rd4 {[%emt 0:01:54]} 40. Re7 {[%emt 0:00:36]} f6 {[%emt 0:00:02]} 41. Re8 {[%emt 0:00:50]} h5 {[%emt 0:00:21]} 42. Kg1 {[%emt 0:00:25]} h4 {[%emt 0:01:44]} 43. Kf2 {[%emt 0:00:14]} Rd5 {[%emt 0:00:48]} 44. Rxe4 {[%emt 0:00:42]} Rxf5+ {[%emt 0:00:01]} 45. Kg1 {[%emt 0:00:10]} Rh5 {[%emt 0:00:11]} 46. Ra4 {[%emt 0:00:15]} Kh6 {[%emt 0:00:07]} 47. Kf2 {[%emt 0:00:06]} g6 {[%emt 0:00:05]} 48. Rb4 {[%emt 0:00:11]} f5 {[%emt 0:00:06]} 49. Ra4 {[%emt 0:00:11]} Kg5 {[%emt 0:00:02]} 50. Ra8 {[%emt 0:00:18]} Rh7 {[%emt 0:00:03]} 51. Kg1 {[%emt 0:00:44]} Re7 {[%emt 0:00:04]} 52. Kh2 {[%emt 0:00:08]} Kf4 {[%emt 0:00:07]} 53. Ra6 {[%emt 0:00:28]} g5 {[%emt 0:00:03]} 54. Ra8 {[%emt 0:00:20]} Re4 {[%emt 0:00:40]} 55. Rb8 {[%emt 0:00:04]} Rd4 {[%emt 0:00:11]} 56. Ra8 {[%emt 0:00:03]} Rd5 {[%emt 0:00:55]} 57. Ra4+ {[%emt 0:00:06]} Ke5 {[%emt 0:00:01]} 58. Ra8 {[%emt 0:00:01]} Rd6 {[%emt 0:00:43]} 59. Ra5+ {[%emt 0:00:13]} Kf6 {[%emt 0:00:02]} 60. Ra8 {[%emt 0:00:09]} g4 {[%emt 0:00:18]} 61. hxg4 {[%emt 0:00:04]} fxg4 {[%emt 0:00:01]} 62. Ra4 {[%emt 0:00:28]} Kg5 {[%emt 0:00:02]} 63. Ra5+ {[%emt 0:00:02]} Kf4 {[%emt 0:00:41]} 64. Ra4+ {[%emt 0:00:01]} Kf5 {[%emt 0:00:01]} 65. Ra5+ {[%emt 0:00:03]} Ke4 {[%emt 0:00:04]} 66. Rh5 {[%emt 0:00:07]} Kf4 {[%emt 0:00:06]} 67. Rxh4 {[%emt 0:00:11]} Rd1 {[%emt 0:00:06]} 68. g3+ {[%emt 0:00:36]} Kf3 {[%emt 0:00:01]} 69. Rh8 {[%emt 0:00:04]} Rd2+ {[%emt 0:00:03]} 70. Kg1 {[%emt 0:00:11]} Kxg3 {[%emt 0:00:12]} 71. Kf1 {[%emt 0:00:05]} Rd1+ {[%emt 0:00:11]} 72. Ke2 {[%emt 0:00:01]} Rg1 {[%emt 0:00:02]} 73. Rg8 {[%emt 0:01:02]} Kh2 {[%emt 0:00:01]} 74. Rh8+ {[%emt 0:00:27]} Kg2 {[%emt 0:00:02]} 75. Rh7 {[%emt 0:00:05]} g3 {[%emt 0:00:01]} 76. Rh8 {[%emt 0:00:04]} Ra1 {[%emt 0:00:03]} 77. Rb8 {[%emt 0:00:07]} Ra7 {[%emt 0:01:48]} 78. Re8 {[%emt 0:00:13]} Kh2 {[%emt 0:00:33]} 79. Rh8+ {[%emt 0:00:22]} Kg1 {[%emt 0:00:25]} 80. Rg8 {[%emt 0:00:04]} g2 {[%emt 0:00:10]} 81. Kf3 {[%emt 0:00:15]} Kf1 {[%emt 0:00:25]} 82. Rb8 Ra3+ 0-1

[Event "Morgan Stanley Charity 2018"]
[Site "Budapest"]
[Date "2018.09.14"]
[Round "4"]
[White "Gara, Anita"]
[Black "Szamoskozi, Gabor"]
[Result "0-1"]
[ECO "B50"]
[WhiteElo "2370"]
[BlackElo "2270"]
[Annotator "NA"]
[PlyCount "102"]
[EventDate "2018.09.14"]
[EventType "team-tourn"]
[EventCountry "HUN"]
[SourceTitle "playchess.com"]
[Source "ChessBase"]
[SourceQuality "1"]
[TimeControl "1200+10"]

1. e4 {[%emt 0:00:01]} c5 {[%emt 0:00:02]} 2. Nf3 {[%emt 0:00:03]} d6 {[%emt 0:00:33]} 3. c3 {[%emt 0:00:03]} Nf6 {[%emt 0:00:47]} 4. Bd3 {[%emt 0:00:01]} g6 {[%emt 0:00:28]} 5. Bc2 {[%emt 0:00:06]} b6 {[%emt 0:01:56]} 6. O-O {[%emt 0:00:16]} Bg7 {[%emt 0:00:07]} 7. d4 {[%emt 0:00:35]} O-O {[%emt 0:00:40]} 8. Re1 {[%emt 0:00:31]} Bb7 {[%emt 0:00:36]} 9. Nbd2 {[%emt 0:01:59]} Nbd7 {[%emt 0:00:17]} 10. Nf1 {[%emt 0:00:24]} Rc8 {[%emt 0:00:42]} 11. Bf4 {[%emt 0:02:06]} Re8 {[%emt 0:04:17]} 12. Rc1 {[%emt 0:00:25]} Nf8 {[%emt 0:01:33]} 13. Qd2 {[%emt 0:00:22]} Ne6 {[%emt 0:00:39]} 14. Bh6 {[%emt 0:01:02]} Bh8 {[%emt 0:00:04]} 15. h3 {[%emt 0:00:44]} cxd4 {[%emt 0:01:15]} 16. cxd4 {[%emt 0:00:08]} d5 {[%emt 0:00:45]} 17. e5 {[%emt 0:00:13]} Ne4 {[%emt 0:00:10]} 18. Qe3 {[%emt 0:00:16]} a6 {[%emt 0:01:05]} 19. N1d2 {[%emt 0:01:14]} Nxd2 {[%emt 0:00:20]} 20. Nxd2 {[%emt 0:00:21]} f6 {[%emt 0:00:58]} 21. Qg3 {[%emt 0:01:02]} Rxc2 {[%emt 0:00:53]} 22. Rxc2 {[%emt 0:00:06]} Nxd4 {[%emt 0:00:10]} 23. Rcc1 {[%emt 0:02:03]} Nf5 {[%emt 0:00:01]} 24. Qc3 {[%emt 0:04:18]} Nxh6 {[%emt 0:00:14]} 25. Qc7 {[%emt 0:00:29]} Qxc7 {[%emt 0:02:00]} 26. Rxc7 {[%emt 0:00:01]} Bc8 {[%emt 0:00:03]} 27. f4 {[%emt 0:00:47]} fxe5 {[%emt 0:00:35]} 28. fxe5 {[%emt 0:00:02]} Bf5 {[%emt 0:00:25]} 29. Nf3 {[%emt 0:00:14]} Nf7 {[%emt 0:00:25]} 30. Rb7 {[%emt 0:01:05]} Be4 {[%emt 0:00:31]} 31. Rxb6 {[%emt 0:00:57]} Nxe5 {[%emt 0:00:09]} 32. Nxe5 {[%emt 0:00:57]} Bxe5 {[%emt 0:00:03]} 33. Rxa6 {[%emt 0:00:11]} Bxb2 {[%emt 0:00:09]} 34. a4 {[%emt 0:01:17]} e5 {[%emt 0:00:42]} 35. Rc6 {[%emt 0:00:36]} Ra8 {[%emt 0:00:27]} 36. Rf1 {[%emt 0:00:52]} Bd3 {[%emt 0:00:46]} 37. Rff6 {[%emt 0:00:09]} e4 {[%emt 0:00:10]} 38. Rfe6 {[%emt 0:00:05]} e3 {[%emt 0:00:20]} 39. Kh2 {[%emt 0:00:15]} Be4 {[%emt 0:00:10]} 40. Kg3 {[%emt 0:00:07]} Bd4 {[%emt 0:00:42]} 41. Rc1 {[%emt 0:00:13]} Kf7 {[%emt 0:00:26]} 42. Rec6 {[%emt 0:00:06]} Be5+ {[%emt 0:00:02]} 43. Kg4 {[%emt 0:00:09]} Rxa4 {[%emt 0:00:05]} 44. Kg5 {[%emt 0:00:16]} Ra2 {[%emt 0:00:17]} 45. Rf1+ {[%emt 0:00:06]} Rf2 {[%emt 0:00:01]} 46. Rcc1 {[%emt 0:00:13]} Bxg2 {[%emt 0:00:05]} 47. Rg1 {[%emt 0:00:04]} Bf4+ {[%emt 0:00:04]} 48. Kg4 {[%emt 0:00:02]} h5+ {[%emt 0:00:21]} 49. Kh4 {[%emt 0:00:01]} g5+ {[%emt 0:00:22]} 50. Kxh5 {[%emt 0:00:01]} e2 {[%emt 0:00:01]} 51. h4 {[%emt 0:00:33]} Bxc1 {[%emt 0:00:04]} 0-1